fUSD/lending_fUSD_20250804
["ID","MTS","AMOUNT","RATE_DAILY","PERIOD"]
[377229426,1754305884107,-1585.73,0.0003863,2]
[377229427,1754305884117,-626.409267,0.0003863,14]
[377229428,1754305884127,-400.0,0.0003863,2]
[377229429,1754305884137,-401.51159927,0.0003863,2]
[377229430,1754305884147,-404.94744398,0.0003863,2]
[377229431,1754305884157,-1301.61,0.0003863,2]
[377229432,1754305884166,-1366.75,0.0003863,2]
[377229433,1754305884176,-1889.25,0.0003863,2]
[377229434,1754305884186,-924.72,0.0003863,2]
[377229435,1754305884197,-641.71,0.0003863,2]
[377229436,1754305884206,-400.0,0.0003863,2]
[377229437,1754305884216,-626.409267,0.0003863,14]
[377229438,1754305884225,-400.0,0.0003863,2]
[377229439,1754305884235,-400.0,0.0003863,2]
[377229440,1754305884245,-400.0,0.0003863,2]
[377229441,1754305884254,-890.3,0.0003863,2]
[377229442,1754305884359,-400.0,0.0003863,2]
[377229443,1754305884369,-726.21,0.0003863,2]
[377229444,1754305884379,-1059.24,0.0003863,2]
[377229445,1754305884388,-2092.15,0.0003863,2]
[377229446,1754305884398,-533.38,0.0003863,2]
[377229447,1754305884408,-400.0,0.0003863,2]
[377229448,1754305884417,-400.0,0.0003863,2]
[377229449,1754305884427,-501.38,0.0003863,2]
[377229450,1754305884436,-990.2,0.0003863,2]
[377229451,1754305884448,-1441.16,0.0003863,2]
[377229452,1754305884457,-690.08,0.0003863,2]
[377229453,1754305884467,-545.68,0.0003863,2]
[377229454,1754305884477,-400.0,0.0003863,2]
[377229455,1754305884486,-151.0,0.0003863,14]
[377229456,1754305884495,-645.51,0.0003863,2]
[377229457,1754305884505,-400.0,0.0003863,2]
[377229458,1754305884514,-549.34030154,0.0003863,2]
[377229459,1754305884523,-803.42,0.0003863,2]
[377229460,1754305884533,-400.0,0.0003863,2]
[377229461,1754305884542,-400.0,0.0003863,2]
[377229462,1754305884552,-400.0,0.0003863,2]
[377229463,1754305884561,-400.0,0.0003863,2]
[377229464,1754305884571,-506.95,0.0003863,2]
[377229465,1754305884580,-788.62,0.0003863,2]
[377229466,1754305884590,-931.05,0.0003863,2]
[377229467,1754305884599,-2071.07,0.0003863,2]
[377229468,1754305884608,-400.0,0.0003863,2]
[377229469,1754305884618,-400.0,0.0003863,2]
[377229470,1754305884627,-552.88,0.0003863,2]
[377229471,1754305884637,-400.0,0.0003863,2]
[377229472,1754305884647,-400.0,0.0003863,2]
[377229473,1754305884656,-186.94596454,0.0003863,2]
[377229474,1754305884665,-400.0,0.0003863,2]
[377229475,1754305884674,-1077.59,0.0003863,2]
[377229476,1754305884684,-400.0,0.0003863,2]
[377229477,1754305884695,-1479.72,0.0003863,2]
[377229478,1754305884705,-400.0,0.0003863,2]
[377229479,1754305884714,-551.2,0.0003863,2]
[377229480,1754305884725,-418.78,0.0003863,120]
[377229481,1754305884734,-400.0,0.0003863,2]
[377229482,1754305884743,-400.0,0.0003863,2]
[377229483,1754305884752,-400.0,0.0003863,2]
[377229484,1754305884762,-406.40257315,0.0003863,2]
[377229485,1754305884771,-400.0,0.0003863,2]
[377229486,1754305884781,-628.0,0.0003863,2]
[377229487,1754305884790,-400.0,0.0003863,2]
[377229488,1754305884799,-400.0,0.0003863,2]
[377229489,1754305884809,-400.0,0.0003863,2]
[377229490,1754305884819,-1186.41,0.0003863,2]
[377229491,1754305884829,-400.0,0.0003863,2]
[377229492,1754305884839,-400.0,0.0003863,2]
[377229493,1754305884849,-400.0,0.0003863,2]
[377229494,1754305884859,-468.63082251,0.0003863,2]
[377229495,1754305884868,-1047.92,0.0003863,2]
[377229496,1754305884877,-400.0,0.0003863,2]
[377229497,1754305884887,-1368.23,0.0003863,2]
[377229498,1754305884900,-882.59,0.0003863,2]
[377229499,1754305884910,-845.07,0.0003863,2]
[377229500,1754305884920,-1022.16,0.0003863,2]
[377229501,1754305884929,-627.42,0.0003863,2]
[377229502,1754305884940,-1654.02,0.0003863,2]
[377229503,1754305884949,-928.07,0.0003863,2]
[377229504,1754305884959,-463.65,0.0003863,2]
[377229505,1754305884968,-400.0,0.0003863,2]
[377229506,1754305884980,-987.02,0.0003863,2]
[377229507,1754305884990,-1263.43,0.0003863,2]
[377229508,1754305884999,-1127.8,0.0003863,2]
[377229509,1754305885008,-400.0,0.0003863,2]
[377229510,1754305885017,-1457.97,0.0003863,2]
[377229511,1754305885027,-732.77,0.0003863,2]
[377229512,1754305885036,-400.0,0.0003863,2]
[377229513,1754305885045,-400.0,0.0003863,2]
[377229514,1754305885054,-1338.78,0.0003863,2]
[377229515,1754305885064,-1212.72,0.0003863,2]
[377229516,1754305885073,-3088.08,0.0003863,2]
[377229517,1754305885083,-1364.75,0.0003863,2]
[377229518,1754305885092,-719.82,0.0003863,2]
[377229519,1754305885102,-272.93426161,0.0003863,2]
[377229520,1754305885111,-400.0,0.0003863,2]
[377229521,1754305885120,-1963.71,0.0003863,2]
[377229522,1754305885129,-669.31,0.0003863,2]
[377229523,1754305885139,-1718.88,0.0003863,2]
[377229524,1754305885149,-400.0,0.0003863,2]
[377229525,1754305885158,-400.0,0.0003863,2]
[377229526,1754305885168,-1049.12,0.0003863,2]
[377229527,1754305885177,-1725.86,0.0003863,2]
[377229528,1754305885186,-470.83,0.0003863,2]
[377229529,1754305885197,-400.0,0.0003863,2]
[377229530,1754305885207,-400.0,0.0003863,2]
[377229531,1754305885216,-1157.0,0.0003863,2]
[377229532,1754305885225,-888.73,0.0003863,2]
[377229533,1754305885235,-574.83,0.0003863,2]
[377229534,1754305885244,-400.0,0.0003863,2]
[377229535,1754305885253,-400.0,0.0003863,2]
[377229536,1754305885263,-1630.61,0.0003863,2]
[377229537,1754305885272,-400.0,0.0003863,2]
[377229538,1754305885281,-400.0,0.0003863,2]
[377229539,1754305885290,-629.17,0.0003863,2]
[377229540,1754305885299,-404.90494973,0.0003863,2]
[377229541,1754305885309,-400.0,0.0003863,2]
[377229542,1754305885319,-1303.32,0.0003863,2]
[377229543,1754305885328,-1485.45,0.0003863,2]
[377229544,1754305885337,-666.66,0.0003863,2]
[377229545,1754305885347,-603.36,0.0003863,2]
[377229546,1754305885356,-495.64,0.0003863,2]
[377229547,1754305885366,-1527.44,0.0003863,2]
[377229548,1754305885375,-736.813337,0.0003863,2]
[377229549,1754305885384,-718.11,0.0003863,2]
[377229550,1754305885394,-400.0,0.0003863,2]
[377229551,1754305885403,-1307.14,0.0003863,2]
[377229552,1754305885412,-400.0,0.0003863,2]
[377229553,1754305885422,-400.0,0.0003863,2]
[377229554,1754305885431,-1110.24,0.0003863,2]
[377229555,1754305885442,-966.32,0.0003863,2]
[377229556,1754305885451,-400.0,0.0003863,2]
[377229557,1754305885461,-869.15,0.0003863,2]
[377229558,1754305885470,-472.180256,0.0003863,2]
[377229559,1754305885480,-536.27,0.0003863,2]
[377229560,1754305885489,-1091.81,0.0003863,2]
[377229561,1754305885499,-400.0,0.0003863,2]
[377229562,1754305885508,-1130.18,0.0003863,2]
[377229563,1754305885518,-1075.79,0.0003863,2]
[377229564,1754305885527,-1117.05,0.0003863,2]
[377229565,1754305885537,-400.0,0.0003863,2]
[377229566,1754305885546,-905.65,0.0003863,2]
[377229567,1754305885555,-471.33,0.0003863,2]
[377229568,1754305885565,-400.0,0.0003863,2]
[377229569,1754305885575,-912.08,0.0003863,2]
[377229570,1754305885584,-400.0,0.0003863,2]
[377229571,1754305885594,-752.876045,0.0003863,2]
[377229572,1754305885603,-400.0,0.0003863,2]
[377229573,1754305885612,-798.59,0.0003863,2]
[377229574,1754305885622,-1354.83,0.0003863,2]
[377229575,1754305885631,-400.0,0.0003863,2]
[377229576,1754305885640,-400.0,0.0003863,2]
[377229577,1754305885649,-1400.07,0.0003863,2]
[377229578,1754305885658,-1284.95,0.0003863,2]
[377229579,1754305885668,-1268.26,0.0003863,2]
[377229580,1754305885677,-631.36,0.0003863,2]
[377229581,1754305885686,-862.24,0.0003863,2]
[377229582,1754305885696,-400.0,0.0003863,2]
[377229583,1754305885705,-418.89,0.0003863,2]
[377229584,1754305885714,-400.0,0.0003863,2]
[377229585,1754305885723,-699.87,0.0003863,2]
[377229586,1754305885733,-616.73,0.0003863,2]
[377229587,1754305885742,-1343.86,0.0003863,2]
[377229588,1754305885752,-434.19,0.0003863,2]
[377229589,1754305885761,-743.43,0.0003863,2]
[377229590,1754305885771,-400.0,0.0003863,2]
[377229591,1754305885781,-927.18,0.0003863,2]
[377229592,1754305885790,-262.88347909,0.0003863,2]
[377229593,1754305885800,-875.84,0.0003863,2]
[377229594,1754305885810,-400.0,0.0003863,2]
[377229595,1754305885819,-400.0,0.0003863,2]
[377229596,1754305885829,-1329.19,0.0003863,2]
[377229597,1754305885838,-1658.94,0.0003863,2]
[377229598,1754305885847,-1263.4,0.0003863,2]
[377229599,1754305885856,-1333.24,0.0003863,2]
[377229600,1754305885865,-1252.38,0.0003863,2]
[377229601,1754305885875,-944.68,0.0003863,2]
[377229602,1754305885884,-400.0,0.0003863,2]
[377229603,1754305885894,-400.0,0.0003863,2]
[377229604,1754305885907,-967.63,0.0003863,2]
[377229605,1754305885917,-414.76,0.0003863,2]
[377229606,1754305885927,-400.0,0.0003863,2]
[377229607,1754305885936,-400.0,0.0003863,2]
[377229608,1754305885946,-400.0,0.0003863,2]
[377229609,1754305885955,-412.29,0.0003863,2]
[377229610,1754305885965,-886.22,0.0003863,2]
[377229611,1754305885975,-400.0,0.0003863,2]
[377229612,1754305885984,-605.41,0.0003863,2]
[377229613,1754305885994,-673.68,0.0003863,2]
[377229614,1754305886004,-1748.2,0.0003863,2]
[377229615,1754305886014,-1117.53,0.0003863,2]
[377229616,1754305886024,-2048.38,0.0003863,2]
[377229617,1754305886034,-3038.05,0.0003863,2]
[377229618,1754305886043,-400.0,0.0003863,2]
[377229619,1754305886052,-400.0,0.0003863,2]
[377229620,1754305886062,-1068.97,0.0003863,2]
[377229621,1754305886071,-611.63,0.0003863,2]
[377229622,1754305886080,-4263.58,0.0003863,2]
[377229623,1754305886090,-400.0,0.0003863,2]
[377229624,1754305886099,-400.0,0.0003863,2]
[377229625,1754305886109,-841.94,0.0003863,2]
[377229626,1754305886118,-1348.61,0.0003863,2]
[377229627,1754305886127,-590.51,0.0003863,2]
[377229628,1754305886136,-400.0,0.0003863,2]
[377229629,1754305886146,-1778.85,0.0003863,2]
[377229630,1754305886155,-400.0,0.0003863,2]
[377229631,1754305886164,-400.0,0.0003863,2]
[377229632,1754305886174,-400.0,0.0003863,2]
[377229633,1754305886184,-400.0,0.0003863,2]
[377229634,1754305886194,-1374.4,0.0003863,2]
[377229635,1754305886203,-661.31,0.0003863,2]
[377229636,1754305886213,-888.64,0.0003863,2]
[377229637,1754305886223,-1281.23,0.0003863,2]
[377229638,1754305886232,-400.0,0.0003863,2]
[377229639,1754305886241,-1558.5,0.0003863,2]
[377229640,1754305886251,-400.0,0.0003863,2]
[377229641,1754305886261,-632.03,0.0003863,2]
[377229642,1754305886270,-838.38,0.0003863,2]
[377229643,1754305886280,-1793.86,0.0003863,2]
[377229644,1754305886290,-6220.24,0.0003863,2]
[377229645,1754305886300,-719.42,0.0003863,2]
[377229646,1754305886310,-2346.34,0.0003863,2]
[377229647,1754305886320,-2208.08,0.0003863,2]
[377229648,1754305886330,-400.0,0.0003863,2]
[377229649,1754305886340,-2028.4,0.0003863,2]
[377229650,1754305886350,-959.16,0.0003863,2]
[377229651,1754305886360,-2121.06,0.0003863,2]
[377229652,1754305886370,-1009.99,0.0003863,2]
[377229653,1754305886380,-400.0,0.0003863,2]
[377229654,1754305886390,-400.0,0.0003863,2]
[377229655,1754305886400,-1421.12,0.0003863,2]
[377229656,1754305886412,-400.0,0.0003863,2]
[377229657,1754305886422,-400.0,0.0003863,2]
[377229658,1754305886432,-1169.71,0.0003863,2]
[377229659,1754305886441,-693.34,0.0003863,2]
[377229660,1754305886451,-1366.07,0.0003863,2]
[377229661,1754305886461,-400.0,0.0003863,2]
[377229662,1754305886471,-1689.54,0.0003863,2]
[377229663,1754305886481,-1110.66,0.0003863,2]
[377229664,1754305886491,-1473.626672,0.0003863,2]
[377229665,1754305886501,-487.34,0.0003863,2]
[377229666,1754305886512,-2122.58,0.0003863,2]
[377229667,1754305886522,-400.0,0.0003863,2]
[377229668,1754305886532,-401.93,0.0003863,2]
[377229669,1754305886541,-2428.92,0.0003863,2]
[377229670,1754305886552,-400.0,0.0003863,2]
[377229671,1754305886562,-548.21,0.0003863,2]
[377229672,1754305886572,-1162.47,0.0003863,2]
[377229673,1754305886582,-400.0,0.0003863,2]
[377229674,1754305886592,-944.360512,0.0003863,2]
[377229675,1754305886602,-1096.89,0.0003863,2]
[377229676,1754305886612,-400.0,0.0003863,2]
[377229677,1754305886622,-558.13,0.0003863,2]
[377229678,1754305886632,-400.0,0.0003863,2]
[377229679,1754305886642,-683.16,0.0003863,2]
[377229680,1754305886652,-4527.79,0.0003863,2]
[377229681,1754305886662,-400.0,0.0003863,2]
[377229682,1754305886671,-688.63,0.0003863,2]
[377229683,1754305886681,-5396.72,0.0003863,2]
[377229684,1754305886691,-400.0,0.0003863,2]
[377229685,1754305886701,-400.0,0.0003863,2]
[377229686,1754305886711,-1505.75209,0.0003863,2]
[377229687,1754305886721,-400.0,0.0003863,2]
[377229688,1754305886731,-400.0,0.0003863,2]
[377229689,1754305886741,-1940.04,0.0003863,2]
[377229690,1754305886751,-787.49,0.0003863,2]
[377229691,1754305886761,-642.79,0.0003863,2]
[377229692,1754305886772,-400.0,0.0003863,2]
[377229693,1754305886782,-400.0,0.0003863,2]
[377229694,1754305886791,-4563.07,0.0003863,2]
[377229695,1754305886800,-400.0,0.0003863,2]
[377229696,1754305886810,-1973.82,0.0003863,2]
[377229697,1754305886820,-1666.37,0.0003863,2]
[377229698,1754305886830,-400.0,0.0003863,2]
[377229699,1754305886839,-400.0,0.0003863,2]
[377229700,1754305886849,-403.81506579,0.0003863,2]
[377229701,1754305886858,-524.97,0.0003863,2]
[377229702,1754305886868,-1536.5,0.0003863,2]
[377229703,1754305886877,-962.89,0.0003863,2]
[377229704,1754305886887,-778.62,0.0003863,2]
[377229705,1754305886897,-802.26,0.0003863,2]
[377229706,1754305886910,-400.0,0.0003863,2]
[377229707,1754305886919,-2940.43,0.0003863,2]
[377229708,1754305886929,-400.0,0.0003863,2]
[377229709,1754305886938,-770.91,0.0003863,2]
[377229710,1754305886949,-1125.71,0.0003863,2]
[377229711,1754305886959,-8227.11,0.0003863,2]
[377229712,1754305886968,-2047.73,0.0003863,2]
[377229713,1754305886979,-11138.27,0.0003863,2]
[377229714,1754305886989,-458.47,0.0003863,2]
[377229715,1754305886999,-400.0,0.0003863,2]
[377229716,1754305887008,-1728.23,0.0003863,2]
[377229717,1754305887018,-400.0,0.0003863,2]
[377229718,1754305887027,-9079.6,0.0003863,2]
[377229719,1754305887037,-400.0,0.0003863,2]
[377229720,1754305887047,-893.35,0.0003863,2]
[377229721,1754305887056,-2159.66,0.0003863,2]
[377229722,1754305887066,-1618.06,0.0003863,2]
[377229723,1754305887075,-445.29,0.0003863,2]
[377229724,1754305887085,-1756.78,0.0003863,2]
[377229725,1754305887094,-2736.99,0.0003863,2]
[377229726,1754305887104,-151.0,0.0003863,14]
[377229727,1754305887113,-581.83,0.0003863,2]
[377229728,1754305887123,-1394.73,0.0003863,2]
[377229729,1754305887132,-1865.31,0.0003863,2]
[377229730,1754305887142,-400.0,0.0003863,2]
[377229731,1754305887151,-151.0,0.0003863,14]
[377229732,1754305887161,-997.42,0.0003863,2]
[377229733,1754305887170,-1087.63,0.0003863,2]
[377229734,1754305887180,-151.0,0.0003863,14]
[377229735,1754305887189,-400.0,0.0003863,2]
[377229736,1754305887200,-3648.6,0.0003863,2]
[377229737,1754305887210,-510.65,0.0003863,2]
[377229738,1754305887219,-400.0,0.0003863,2]
[377229739,1754305887229,-520.48,0.0003863,2]
[377229740,1754305887239,-1873.61,0.0003863,2]
[377229741,1754305887248,-1200.71,0.0003863,2]
[377229742,1754305887258,-400.0,0.0003863,2]
[377229743,1754305887267,-400.0,0.0003863,2]
[377229744,1754305887277,-875.07,0.0003863,2]
[377229745,1754305887286,-1629.46,0.0003863,2]
[377229746,1754305887295,-531.96,0.0003863,2]
[377229747,1754305887306,-1001.01,0.0003863,2]
[377229748,1754305887316,-400.0,0.0003863,2]
[377229749,1754305887326,-6021.56,0.0003863,2]
[377229750,1754305887335,-3451.49,0.0003863,2]
[377229751,1754305887345,-688.87,0.0003863,2]
[377229752,1754305887355,-402.14397344,0.0003863,2]
[377229753,1754305887365,-400.0,0.0003863,2]
[377229754,1754305887375,-1875.95,0.0003863,2]
[377229755,1754305887385,-659.18,0.0003863,2]
[377229756,1754305887395,-162.24601937,0.0003863,2]
[377229757,1754305887406,-905.16,0.0003863,2]
[377229758,1754305887416,-1539.83,0.0003863,2]
[377229759,1754305887425,-400.0,0.0003863,2]
[377229760,1754305887435,-618.84,0.0003863,2]
[377229761,1754305887446,-2160.03,0.0003863,2]
[377229762,1754305887456,-491.69,0.0003863,2]
[377229763,1754305887466,-1377.16,0.0003863,2]
[377229764,1754305887476,-400.0,0.0003863,2]
[377229765,1754305887486,-400.0,0.0003863,2]
[377229766,1754305887496,-476.99,0.0003863,2]
[377229767,1754305887506,-727.44,0.0003863,2]
[377229768,1754305887516,-1286.32,0.0003863,2]
[377229769,1754305887526,-713.76,0.0003863,2]
[377229770,1754305887536,-400.0,0.0003863,2]
[377229771,1754305887546,-580.3,0.0003863,2]
[377229772,1754305887555,-582.52,0.0003863,2]
[377229773,1754305887565,-400.0,0.0003863,2]
[377229774,1754305887576,-1584.46,0.0003863,2]
[377229775,1754305887586,-400.0,0.0003863,2]
[377229776,1754305887597,-407.26435297,0.0003863,2]
[377229777,1754305887607,-400.0,0.0003863,2]
[377229778,1754305887617,-406.58,0.0003863,2]
[377229779,1754305887627,-6316.72,0.0003863,2]
[377229780,1754305887637,-1515.13,0.0003863,2]
[377229781,1754305887647,-1891.71,0.0003863,2]
[377229782,1754305887657,-3107.23,0.0003863,2]
[377229783,1754305887667,-400.0,0.0003863,2]
[377229784,1754305887677,-400.0,0.0003863,2]
[377229785,1754305887687,-1032.57,0.0003863,2]
[377229786,1754305887698,-400.0,0.0003863,2]
[377229787,1754305887708,-1732.93,0.0003863,2]
[377229788,1754305887718,-1698.39,0.0003863,2]
[377229789,1754305887739,-402.19099959,0.0003863,2]
[377229790,1754305887750,-1238.95,0.0003863,2]
[377229791,1754305887763,-400.0,0.0003863,2]
[377229792,1754305887772,-1670.39,0.0003863,2]
[377229793,1754305887782,-400.0,0.0003863,2]
[377229794,1754305887792,-400.0,0.0003863,2]
[377229795,1754305887803,-1178.78,0.0003863,2]
[377229796,1754305887814,-1644.64,0.0003863,2]
[377229797,1754305887824,-1868.67,0.0003863,2]
[377229798,1754305887834,-1066.08,0.0003863,2]
[377229799,1754305887844,-400.0,0.0003863,2]
[377229800,1754305887854,-942.3,0.0003863,2]
[377229801,1754305887864,-2052.93,0.0003863,2]
[377229802,1754305887874,-533.88,0.0003863,2]
[377229803,1754305887884,-1689.09,0.0003863,2]
[377229804,1754305887895,-400.0,0.0003863,2]
[377229805,1754305887909,-400.0,0.0003863,2]
[377229806,1754305887919,-1572.92,0.0003863,2]
[377229807,1754305887929,-1545.77,0.0003863,2]
[377229808,1754305887939,-1264.88,0.0003863,2]
[377229809,1754305887950,-1722.33,0.0003863,2]
[377229810,1754305887960,-1113.34,0.0003863,2]
[377229811,1754305887970,-8388.36,0.0003863,2]
[377229812,1754305887981,-1766.11,0.0003863,2]
[377229813,1754305887992,-1306.14,0.0003863,2]
[377229814,1754305888001,-1596.57,0.0003863,2]
[377229815,1754305888011,-819.3,0.0003863,2]
[377229816,1754305888021,-431.73,0.0003863,2]
[377229817,1754305888031,-400.0,0.0003863,2]
[377229818,1754305888041,-400.0,0.0003863,2]
[377229819,1754305888051,-1501.24,0.0003863,2]
[377229820,1754305888061,-873.38,0.0003863,2]
[377229821,1754305888071,-1010.21,0.0003863,2]
[377229822,1754305888081,-400.0,0.0003863,2]
[377229823,1754305888091,-1156.04,0.0003863,2]
[377229824,1754305888101,-400.0,0.0003863,2]
[377229825,1754305888113,-1469.78,0.0003863,2]
[377229826,1754305888123,-4195.1,0.0003863,2]
[377229827,1754305888134,-400.0,0.0003863,2]
[377229828,1754305888143,-151.0,0.0003863,14]
[377229829,1754305888153,-1925.04,0.0003863,2]
[377229830,1754305888163,-714.27,0.0003863,2]
[377229831,1754305888172,-400.0,0.0003863,2]
[377229832,1754305888182,-402.36102631,0.0003863,2]
[377229833,1754305888191,-400.0,0.0003863,2]
[377229834,1754305888202,-317.20738679,0.0003863,2]
[377229835,1754305888212,-1923.74,0.0003863,2]
[377229836,1754305888222,-817.57,0.0003863,2]
[377229837,1754305888232,-1747.36,0.0003863,2]
[377229838,1754305888241,-1337.16,0.0003863,2]
[377229839,1754305888251,-1374.38,0.0003863,2]
[377229840,1754305888261,-1746.78,0.0003863,2]
[377229841,1754305888272,-694.89,0.0003863,2]
[377229842,1754305888282,-400.0,0.0003863,2]
[377229843,1754305888292,-670.37,0.0003863,2]
[377229844,1754305888302,-400.0,0.0003863,2]
[377229845,1754305888316,-1448.9,0.0003863,2]
[377229846,1754305888327,-400.0,0.0003863,2]
[377229847,1754305888337,-5776.09,0.0003863,2]
[377229848,1754305888347,-400.0,0.0003863,2]
[377229849,1754305888357,-1793.17,0.0003863,2]
[377229850,1754305888367,-1183.71,0.0003863,2]
[377229851,1754305888377,-400.0,0.0003863,2]
[377229852,1754305888388,-1363.88,0.0003863,2]
[377229853,1754305888398,-400.0,0.0003863,2]
[377229854,1754305888409,-6346.76,0.0003863,2]
[377229855,1754305888419,-400.0,0.0003863,2]
[377229856,1754305888717,-1230.85,0.0003863,2]
[377229857,1754305888728,-455.16,0.0003863,2]
[377229858,1754305888738,-400.0,0.0003863,2]
[377229859,1754305888748,-400.0,0.0003863,2]
[377229860,1754305888757,-941.56,0.0003863,2]
[377229861,1754305888767,-1208.54,0.0003863,2]
[377229862,1754305888777,-400.0,0.0003863,2]
[377229863,1754305888787,-2444.62,0.0003863,2]
[377229864,1754305888797,-400.0,0.0003863,2]
[377229865,1754305888807,-1603.12,0.0003863,2]
[377229866,1754305888817,-1266.17,0.0003863,2]
[377229867,1754305888826,-400.0,0.0003863,2]
[377229868,1754305888836,-968.13,0.0003863,2]
[377229869,1754305888846,-642.68,0.0003863,2]
[377229870,1754305888855,-400.0,0.0003863,2]
[377229871,1754305888865,-2358.63,0.0003863,2]
[377229872,1754305888875,-1754.23,0.0003863,2]
[377229873,1754305888885,-521.68,0.0003863,2]
[377229874,1754305888895,-400.0,0.0003863,2]
[377229875,1754305888909,-400.0,0.0003863,2]
[377229876,1754305888919,-400.0,0.0003863,2]
[377229877,1754305888929,-2154.85,0.0003863,2]
[377229878,1754305888939,-400.0,0.0003863,2]
[377229879,1754305888951,-403.29,0.0003863,2]
[377229880,1754305888961,-532.52,0.0003863,2]
[377229881,1754305888971,-407.35093766,0.0003863,2]
[377229882,1754305888984,-1735.99,0.0003863,2]
[377229883,1754305888994,-400.0,0.0003863,2]
[377229884,1754305889003,-1686.63,0.0003863,2]
[377229885,1754305889013,-403.11,0.0003863,2]
[377229886,1754305889022,-759.33,0.0003863,2]
[377229887,1754305889032,-1873.9,0.0003863,2]
[377229888,1754305889041,-400.0,0.0003863,2]
[377229889,1754305889050,-400.0,0.0003863,2]
[377229890,1754305889060,-1593.33,0.0003863,2]
[377229891,1754305889070,-1673.67,0.0003863,2]
[377229892,1754305889079,-1754.05,0.0003863,2]
[377229893,1754305889090,-914.89,0.0003863,2]
[377229894,1754305889099,-736.813336,0.0003863,2]
[377229895,1754305889109,-1464.44,0.0003863,2]
[377229896,1754305889119,-2045.74,0.0003863,2]
[377229897,1754305889128,-773.62,0.0003863,2]
[377229898,1754305889137,-400.0,0.0003863,2]
[377229899,1754305889147,-1378.84,0.0003863,2]
[377229900,1754305889157,-783.24,0.0003863,2]
[377229901,1754305889166,-652.46,0.0003863,2]
[377229902,1754305889176,-400.0,0.0003863,2]
[377229903,1754305889185,-4332.09,0.0003863,2]
[377229904,1754305889195,-557.78,0.0003863,2]
[377229905,1754305889205,-400.0,0.0003863,2]
[377229906,1754305889215,-472.180256,0.0003863,2]
[377229907,1754305889225,-400.0,0.0003863,2]
[377229908,1754305889235,-505.58,0.0003863,2]
[377229909,1754305889245,-2822.69,0.0003863,2]
[377229910,1754305889255,-752.876045,0.0003863,2]
[377229911,1754305889264,-781.05,0.0003863,2]
[377229912,1754305889274,-1582.56,0.0003863,2]
[377229913,1754305889283,-437.18,0.0003863,2]
[377229914,1754305889293,-1692.49,0.0003863,2]
[377229915,1754305889303,-400.0,0.0003863,2]
[377229916,1754305889312,-4257.32,0.0003863,2]
[377229917,1754305889321,-400.0,0.0003863,2]
[377229918,1754305889330,-1474.41,0.0003863,2]
[377229919,1754305889340,-400.0,0.0003863,2]
[377229920,1754305889350,-958.47,0.0003863,2]
[377229921,1754305889359,-8555.46,0.0003863,2]
[377229922,1754305889369,-12684.74,0.0003863,2]
[377229923,1754305889379,-400.0,0.0003863,2]
[377229924,1754305889388,-400.0,0.0003863,2]
[377229925,1754305889398,-8447.34,0.0003863,2]